Departmental family,Entity,Date Paid,Expense type,Expense Area,Supplier,Transaction Number, Amount , Description ,Supplier Type,Expenditure Type,
UK Statistics Authority,Office for National Statistics,01 February 2017,IT Purchases >2k,Digital Services Technology and Methodology,Stone Computers,13370," 80,280.00 ",Information Management Services,Large,Programme,
UK Statistics Authority,Office for National Statistics,01 February 2017,Services - Non IT Contractual Payments,LIFE EVENTS and POPULATION SOURCES,London School of Hygiene & Tropical Medicine,13390," 29,689.00 ",Statistical Services,Large,Programme,
UK Statistics Authority,Office for National Statistics,01 February 2017,Major Works Over 25k         ,Property Newport,Vinci Construction UK Limited,13397," 8,320.80 ",Facilities Management,Large,Programme,
UK Statistics Authority,Office for National Statistics,01 February 2017,Major Works Over 25k         ,Property Newport,Vinci Construction UK Limited,13397," 5,694.00 ",Facilities Management,Large,Programme,
UK Statistics Authority,Office for National Statistics,01 February 2017,Miscellaneous Minor Works     ,Property Newport,Vinci Construction UK Limited,13397," 5,298.00 ",Facilities Management,Large,Programme,
UK Statistics Authority,Office for National Statistics,01 February 2017,Major Works Over 25k         ,Property Titchfield,Vinci Construction UK Limited,13397," 27,750.00 ",Facilities Management,Large,Programme,
UK Statistics Authority,Office for National Statistics,01 February 2017,Major Works Over 25k         ,Property Titchfield,Vinci Construction UK Limited,13397," 47,460.00 ",Facilities Management,Large,Programme,
UK Statistics Authority,Office for National Statistics,01 February 2017,Major Works Over 25k         ,Property Titchfield,Vinci Construction UK Limited,13397," 4,700.00 ",Facilities Management,Large,Programme,
UK Statistics Authority,Office for National Statistics,01 February 2017,Major Works Over 25k         ,Property Newport,Vinci Construction UK Limited,13397, 940.00 ,Facilities Management,Large,Programme,
UK Statistics Authority,Office for National Statistics,01 February 2017,Contractors,Digital Services Technology and Methodology,Qa Ltd,13409," 497,805.00 ",Information Management Services,Large,Programme,
UK Statistics Authority,Office for National Statistics,01 February 2017,Capitalised Specialist Contractors It,SENIOR MANAGEMENT TEAM,Ernst & Young Llp,13410," 13,608.00 ",Information Management Services,Large,Programme,
UK Statistics Authority,Office for National Statistics,01 February 2017,Consultants IT,SENIOR MANAGEMENT TEAM,Ernst & Young Llp,13410," 18,552.00 ",Information Management Services,Large,Programme,
UK Statistics Authority,Office for National Statistics,01 February 2017,Consultants IT,SENIOR MANAGEMENT TEAM,Ernst & Young Llp,13410," 27,336.00 ",Information Management Services,Large,Programme,
UK Statistics Authority,Office for National Statistics,01 February 2017,Services - IT Contractual Payments,SENIOR MANAGEMENT TEAM,Ernst & Young Llp,13410," 27,708.00 ",Information Management Services,Large,Programme,
UK Statistics Authority,Office for National Statistics,01 February 2017,Services - Non IT Contractual Payments,SENIOR MANAGEMENT TEAM,Ernst & Young Llp,13410," 67,572.00 ",Information Management Services,Large,Programme,
UK Statistics Authority,Office for National Statistics,01 February 2017,Services - Non IT Contractual Payments,SENIOR MANAGEMENT TEAM DESIGN,Ernst & Young Llp,13410," 28,944.00 ",Information Management Services,Large,Programme,
UK Statistics Authority,Office for National Statistics,01 February 2017,Miscellaneous Fees            ,DIVISIONAL MANAGEMENT         ,Engine Partners UK Llp,13412, 225.43 ,Information Management Services,Large,Programme,
UK Statistics Authority,Office for National Statistics,01 February 2017,Services - Non IT Contractual Payments,DIVISIONAL MANAGEMENT         ,Engine Partners UK Llp,13412," 26,759.71 ",Information Management Services,Large,Programme,
UK Statistics Authority,Office for National Statistics,01 February 2017,Services - Non IT Contractual Payments,DIVISIONAL MANAGEMENT         ,Engine Partners UK Llp,13412, 36.07 ,Information Management Services,Large,Programme,
UK Statistics Authority,Office for National Statistics,01 February 2017,Services - Non IT Contractual Payments,DIVISIONAL MANAGEMENT         ,Engine Partners UK Llp,13412," 5,404.24 ",Information Management Services,Large,Programme,
UK Statistics Authority,Office for National Statistics,01 February 2017,Services - Non IT Contractual Payments,ORGANISATIONAL CAPABILITY,Cabinet Office,13415," 106,707.63 ",Pension Administration Charge,Large,Programme,
UK Statistics Authority,Office for National Statistics,01 February 2017,Services - Non IT Contractual Payments,ORGANISATIONAL CAPABILITY,Cabinet Office,13415," 21,341.53 ",Pension Administration Charge,Large,Programme,
UK Statistics Authority,Office for National Statistics,01 February 2017,Statistical Services/Surveys  ,SOCIAL SURVEYS DIVISION,National Centre,13427," 205,082.97 ",Statistical Services,Large,Programme,
UK Statistics Authority,Office for National Statistics,01 February 2017,Statistical Services/Surveys  ,SOCIAL SURVEYS DIVISION,National Centre,13427," 41,016.59 ",Statistical Services,Large,Programme,
UK Statistics Authority,Office for National Statistics,01 February 2017,Statistical Services/Surveys  ,SOCIAL SURVEYS DIVISION,National Centre,13427," 12,105.52 ",Statistical Services,Large,Programme,
UK Statistics Authority,Office for National Statistics,01 February 2017,IT Software Maintenance       ,ADMIN DATA,Computacenter (Uk) Limited,13429, 166.63 ,Information Management Services,Large,Programme,
UK Statistics Authority,Office for National Statistics,01 February 2017,IT Software Maintenance       ,BUSINESS CHANGE & SUPPORT,Computacenter (Uk) Limited,13429, 166.63 ,Information Management Services,Large,Programme,
UK Statistics Authority,Office for National Statistics,01 February 2017,IT Purchases >2k,Digital Services Technology and Methodology,Computacenter (Uk) Limited,13429," 15,380.78 ",Information Management Services,Large,Programme,
UK Statistics Authority,Office for National Statistics,01 February 2017,Software Pool 4yr,Digital Services Technology and Methodology,Computacenter (Uk) Limited,13429," 7,883.34 ",Information Management Services,Large,Programme,
UK Statistics Authority,Office for National Statistics,01 February 2017,Contractors,Digital Services Technology and Methodology,Computacenter (Uk) Limited,13429," 224,730.84 ",Information Management Services,Large,Programme,
UK Statistics Authority,Office for National Statistics,01 February 2017,IT Purchases <2k,Digital Services Technology and Methodology,Computacenter (Uk) Limited,13429," 29,787.00 ",Information Management Services,Large,Programme,
UK Statistics Authority,Office for National Statistics,01 February 2017,Software Pool 4yr,Digital Services Technology and Methodology,Computacenter (Uk) Limited,13429," 22,328.38 ",Information Management Services,Large,Programme,
UK Statistics Authority,Office for National Statistics,01 February 2017,Contractors,Digital Services Technology and Methodology,Computacenter (Uk) Limited,13429," 3,535.46 ",Information Management Services,Large,Programme,
UK Statistics Authority,Office for National Statistics,01 February 2017,ICT Outsourcing & Maintenance/Support,Digital Services Technology and Methodology,Computacenter (Uk) Limited,13429," 22,779.28 ",Information Management Services,Large,Programme,
UK Statistics Authority,Office for National Statistics,01 February 2017,IT Software Maintenance       ,MEASURING NATIONAL WELLBEING,Computacenter (Uk) Limited,13429, 333.26 ,Information Management Services,Large,Programme,
UK Statistics Authority,Office for National Statistics,01 February 2017,IT Purchases <2k,ORGANISATIONAL CAPABILITY,Computacenter (Uk) Limited,13429, 451.33 ,Information Management Services,Large,Programme,
UK Statistics Authority,Office for National Statistics,01 February 2017,IT Software Maintenance       ,PORTFOLIO DELIVERY UNIT,Computacenter (Uk) Limited,13429, 333.26 ,Information Management Services,Large,Programme,
UK Statistics Authority,Office for National Statistics,01 February 2017,IT Software Maintenance       ,BUSINESS CHANGE & SUPPORT,Computacenter (Uk) Limited,13429," 4,555.86 ",Information Management Services,Large,Programme,
UK Statistics Authority,Office for National Statistics,01 February 2017,Agency Staff,Census,Parity Resources Limited,13430," 3,832.38 ",Information Management Services,Large,Programme,
UK Statistics Authority,Office for National Statistics,01 February 2017,Agency Staff,Census,Parity Resources Limited,13430," 7,244.20 ",Information Management Services,Large,Programme,
UK Statistics Authority,Office for National Statistics,01 February 2017,Specialist Contractors IT,BUSINESS CHANGE & SUPPORT,Parity Resources Limited,13430," 16,691.83 ",Information Management Services,Large,Programme,
UK Statistics Authority,Office for National Statistics,01 February 2017,Specialist Contractors IT,BUSINESS CHANGE & SUPPORT,Parity Resources Limited,13430," 22,863.76 ",Information Management Services,Large,Programme,
UK Statistics Authority,Office for National Statistics,01 February 2017,Agency Staff,CUSTOMER FIRST,Parity Resources Limited,13430," 6,744.22 ",Information Management Services,Large,Programme,
UK Statistics Authority,Office for National Statistics,01 February 2017,Miscellaneous Minor Works     ,CUSTOMER FIRST,Parity Resources Limited,13430, 696.19 ,Information Management Services,Large,Programme,
UK Statistics Authority,Office for National Statistics,01 February 2017,Agency Staff,DATA INTEGRATION AND DISSEMINATION,Parity Resources Limited,13430," 4,036.03 ",Information Management Services,Large,Programme,
UK Statistics Authority,Office for National Statistics,01 February 2017,Capitalised Agency Staff Costs,DIGITAL PUBLISHING PMO,Parity Resources Limited,13430," 7,200.00 ",Information Management Services,Large,Programme,
UK Statistics Authority,Office for National Statistics,01 February 2017,Specialist Contractors IT,Digital Services Technology and Methodology,Parity Resources Limited,13430," 21,744.48 ",Information Management Services,Large,Programme,
UK Statistics Authority,Office for National Statistics,01 February 2017,Specialist Contractors IT,DIVISIONAL  STRATEGY AND SUPPORT,Parity Resources Limited,13430," 7,628.80 ",Information Management Services,Large,Programme,
UK Statistics Authority,Office for National Statistics,01 February 2017,Contractors,Digital Services Technology and Methodology,Parity Resources Limited,13430," 36,128.80 ",Information Management Services,Large,Programme,
UK Statistics Authority,Office for National Statistics,01 February 2017,Agency Staff,INTERVIEWER SUPPORT,Parity Resources Limited,13430," 2,243.09 ",Information Management Services,Large,Programme,
UK Statistics Authority,Office for National Statistics,01 February 2017,Agency Staff,ORGANISATIONAL CAPABILITY,Parity Resources Limited,13430," 4,690.14 ",Information Management Services,Large,Programme,
UK Statistics Authority,Office for National Statistics,01 February 2017,Specialist Contractors IT,Organisational Development,Parity Resources Limited,13430," 6,331.50 ",Information Management Services,Large,Programme,
UK Statistics Authority,Office for National Statistics,01 February 2017,Agency Staff,Portfolio Design,Parity Resources Limited,13430," 1,956.86 ",Information Management Services,Large,Programme,
UK Statistics Authority,Office for National Statistics,01 February 2017,Specialist Contractors IT,Portfolio Design,Parity Resources Limited,13430," 12,790.80 ",Information Management Services,Large,Programme,
UK Statistics Authority,Office for National Statistics,01 February 2017,Travel & Subsistence,Portfolio Design,Parity Resources Limited,13430, 96.36 ,Information Management Services,Large,Programme,
UK Statistics Authority,Office for National Statistics,01 February 2017,Agency Staff,SOCIAL SURVEYS DIVISION,Parity Resources Limited,13430, 995.98 ,Information Management Services,Large,Programme,
UK Statistics Authority,Office for National Statistics,01 February 2017,Agency Staff,STATISTICAL FRAMEWORK DIVISION,Parity Resources Limited,13430," 5,751.46 ",Information Management Services,Large,Programme,
UK Statistics Authority,Office for National Statistics,01 February 2017,Specialist Contractors IT,STRATEGY & ENTERPRISE ARCHITECTURE,Parity Resources Limited,13430," 18,594.64 ",Information Management Services,Large,Programme,
UK Statistics Authority,Office for National Statistics,01 February 2017,Specialist Contractors IT,STRATEGY & ENTERPRISE ARCHITECTURE,Parity Resources Limited,13430," 11,424.00 ",Information Management Services,Large,Programme,
UK Statistics Authority,Office for National Statistics,01 February 2017,Contractors,Digital Services Technology and Methodology,Valtech Ltd,13436," 34,704.00 ",Information Management Services,Large,Programme,
UK Statistics Authority,Office for National Statistics,01 February 2017,Travel & Subsistence,CWT TRAINLINE,Redfern Travel,13367," 48,134.75 ",Travel and Accommodation Booking Service,SME,Programme,
UK Statistics Authority,Office for National Statistics,01 February 2017,IT Purchases >2k,PROGRAMME OTHER,Software Box Ltd,13369," 40,524.00 ",IT Hardware & Peripherals,SME,Programme,
UK Statistics Authority,Office for National Statistics,01 February 2017,Capital Major Works >25k      ,Property Newport,Central Roofing Ltd,13382," 214,741.11 ",Major Works Newport,SME,Programme,
UK Statistics Authority,Office for National Statistics,01 February 2017,Major Works Over 25k         ,Property Newport,Central Roofing Ltd,13382," 53,685.28 ",Major Works Newport,SME,Programme,
UK Statistics Authority,Office for National Statistics,01 February 2017,Major Works Over 25k         ,Property Newport,Central Roofing Ltd,13382," 53,685.28 ",Major Works Newport,SME,Programme,
UK Statistics Authority,Office for National Statistics,01 February 2017,Contractors,Digital Services Technology and Methodology,Clearvision-Cm,13391," 31,498.78 ",Information Management Services,SME,Programme,
UK Statistics Authority,Office for National Statistics,01 February 2017,Contractors,Digital Services Technology and Methodology,E Synergy Solutions,13392," 67,788.00 ",Information Management Services,SME,Programme,
UK Statistics Authority,Office for National Statistics,02 February 2017,Contractors,Digital Services Technology and Methodology,Mastek,13915," 6,720.00 ",Information Management Services,Large,Programme,
UK Statistics Authority,Office for National Statistics,02 February 2017,Statistical Services/Surveys  ,Digital Services Technology and Methodology,Mastek,13915," 77,250.00 ",Information Management Services,Large,Programme,
UK Statistics Authority,Office for National Statistics,02 February 2017,Contractors,Digital Services Technology and Methodology,Mastek,13915," 112,290.00 ",Information Management Services,Large,Programme,
UK Statistics Authority,Office for National Statistics,02 February 2017,Services - IT Contractual Payments,People Solutions,Cabinet Office,13920," 82,219.92 ",HR Expert Services,Large,Programme,
UK Statistics Authority,Office for National Statistics,02 February 2017,Miscellaneous Fees            ,Finance Division,Scc,13922," 157,189.44 ",Information Management Services,Large,Programme,
UK Statistics Authority,Office for National Statistics,02 February 2017,Other ICT Costs,Digital Services Technology and Methodology,Scc,13922, 791.53 ,Information Management Services,Large,Programme,
UK Statistics Authority,Office for National Statistics,02 February 2017,Contractors,Digital Services Technology and Methodology,Context Information Security,13936," 26,880.00 ",Information Management Services,SME,Programme,
UK Statistics Authority,Office for National Statistics,03 February 2017,Contractors,Digital Services Technology and Methodology,Valtech Ltd,13943," 106,908.90 ",Information Management Services,Large,Programme,
UK Statistics Authority,Office for National Statistics,03 February 2017,Telecomms                     ,Digital Services Technology and Methodology,Bt Global Services,13950," 30,772.19 ",Information Management Services,Large,Programme,
UK Statistics Authority,Office for National Statistics,03 February 2017,Specialist Contractors IT,DIGITAL PUBLISHING PMO,Methods Digital Ltd,13954," 16,200.00 ",Information Management Services,Large,Programme,
UK Statistics Authority,Office for National Statistics,03 February 2017,Contractors,Digital Services Technology and Methodology,Methods Digital Ltd,13954," 40,050.00 ",Information Management Services,Large,Programme,
UK Statistics Authority,Office for National Statistics,03 February 2017,Consultants IT,SENIOR MANAGEMENT TEAM,Ernst & Young Llp,13959," 76,188.00 ",Information Management Services,Large,Programme,
UK Statistics Authority,Office for National Statistics,03 February 2017,Services - Non IT Contractual Payments,SENIOR MANAGEMENT TEAM,Ernst & Young Llp,13959," 44,250.00 ",Information Management Services,Large,Programme,
UK Statistics Authority,Office for National Statistics,06 February 2017,Specialist Contractors IT,Digital Services Technology and Methodology,Methods Digital Ltd,14348," 13,500.00 ",Information Management Services,Large,Programme,
UK Statistics Authority,Office for National Statistics,06 February 2017,Contractors,Digital Services Technology and Methodology,Methods Digital Ltd,14348," 72,390.00 ",Information Management Services,Large,Programme,
UK Statistics Authority,Office for National Statistics,06 February 2017,Miscellaneous Fees            ,Finance Division,Computershare Voucher Services,14354," 2,622.22 ",Childcare Vouchers,Large,Programme,
UK Statistics Authority,Office for National Statistics,06 February 2017,Miscellaneous Fees            ,Property Newport,Computershare Voucher Services,14354," 33,618.17 ",Childcare Vouchers,Large,Programme,
UK Statistics Authority,Office for National Statistics,06 February 2017,Travel & Subsistence,CWT TRAINLINE,Calder World of Travel,14344," 26,848.99 ",Trainline Booking Services,SME,Programme,
UK Statistics Authority,Office for National Statistics,07 February 2017,Capital Major Works >25k      ,Property Newport,Paramount Office Interiors Ltd,14572," 254,375.41 ",Major Works Newport,SME,Programme,
UK Statistics Authority,Office for National Statistics,07 February 2017,Major Works Over 25k         ,Property Newport,Paramount Office Interiors Ltd,14572," 211,979.51 ",Major Works Newport,SME,Programme,
UK Statistics Authority,Office for National Statistics,07 February 2017,Major Works Over 25k         ,Property Newport,Paramount Office Interiors Ltd,14572," 42,395.90 ",Major Works Newport,SME,Programme,
UK Statistics Authority,Office for National Statistics,08 February 2017,Statistical Services/Surveys  ,PRICES DIVISION,Tns UK Ltd,14589," 157,526.00 ",Statistical Services,Large,Programme,
UK Statistics Authority,Office for National Statistics,08 February 2017,Statistical Services/Surveys  ,PRICES DIVISION,Tns UK Ltd,14589," 31,505.20 ",Statistical Services,Large,Programme,
UK Statistics Authority,Office for National Statistics,08 February 2017,Travel & Subsistence,CWT TRAINLINE,Redfern Travel,14586," 45,239.96 ",Travel and Accommodation Booking Service,SME,Programme,
UK Statistics Authority,Office for National Statistics,08 February 2017,Services - Non IT Contractual Payments,OCEA DIVISION,Iff Research,14579," 29,925.00 ",Statistical Services,SME,Programme,
UK Statistics Authority,Office for National Statistics,08 February 2017,Services - Non IT Contractual Payments,OCEA DIVISION,Iff Research,14579," 5,985.00 ",Statistical Services,SME,Programme,
UK Statistics Authority,Office for National Statistics,09 February 2017,Contractors,Digital Services Technology and Methodology,Mastek,15081," 61,530.00 ",Information Management Services,Large,Programme,
UK Statistics Authority,Office for National Statistics,09 February 2017,Services - Non IT Contractual Payments,LIFE EVENTS and POPULATION SOURCES,London School of Hygiene & Tropical Medicine,15083," 29,689.00 ",Statistical Services,Large,Programme,
UK Statistics Authority,Office for National Statistics,09 February 2017,Services - IT Contractual Payments,DIGITAL PUBLISHING PMO,Equal Experts UK Ltd,15118," 12,300.00 ",Information Management Services,Large,Programme,
UK Statistics Authority,Office for National Statistics,09 February 2017,Services - IT Contractual Payments,DIGITAL PUBLISHING PMO,Equal Experts UK Ltd,15118," 150,000.00 ",Information Management Services,Large,Programme,
UK Statistics Authority,Office for National Statistics,09 February 2017,Consultants IT,SENIOR MANAGEMENT TEAM DESIGN,Deloitte,15110," 27,484.80 ",Information Management Services,SME,Programme,
UK Statistics Authority,Office for National Statistics,09 February 2017,Miscellaneous Fees            ,Census,Brook Street (UK) Limited,15116," 198,500.40 ",Census RTP Services,SME,Programme,
UK Statistics Authority,Office for National Statistics,10 February 2017,Statistical Services/Surveys  ,PRICES DIVISION,Tns UK Ltd,15132," 150,022.00 ",Statistical Services,Large,Programme,
UK Statistics Authority,Office for National Statistics,10 February 2017,Statistical Services/Surveys  ,PRICES DIVISION,Tns UK Ltd,15132," 30,004.40 ",Statistical Services,Large,Programme,
UK Statistics Authority,Office for National Statistics,10 February 2017,Services - IT Contractual Payments,BUSINESS CHANGE & SUPPORT,Indigoblue,15133," 5,700.00 ",Information Management Services,Large,Programme,
UK Statistics Authority,Office for National Statistics,10 February 2017,Services - IT Contractual Payments,Digital Services Technology and Methodology,Indigoblue,15133," 33,360.00 ",Information Management Services,Large,Programme,
UK Statistics Authority,Office for National Statistics,10 February 2017,Contractors,Digital Services Technology and Methodology,Valtech Ltd,15139," 34,468.50 ",Information Management Services,Large,Programme,
UK Statistics Authority,Office for National Statistics,10 February 2017,Contractors,Digital Services Technology and Methodology,Valtech Ltd,15139," 34,402.50 ",Information Management Services,Large,Programme,
UK Statistics Authority,Office for National Statistics,13 February 2017,Contractors,Digital Services Technology and Methodology,Mastek,15645," 86,460.00 ",Information Management Services,Large,Programme,
UK Statistics Authority,Office for National Statistics,13 February 2017,Services - Non IT Contractual Payments,SOCIAL SURVEYS DIVISION,Nisra,15652," 86,345.10 ",Statistical Services,Large,Programme,
UK Statistics Authority,Office for National Statistics,13 February 2017,Consultants IT,People Solutions,Ernst & Young Llp,15658," 33,455.00 ",Information Management Services,Large,Programme,
UK Statistics Authority,Office for National Statistics,13 February 2017,Consultants IT,SENIOR MANAGEMENT TEAM,Ernst & Young Llp,15658," 21,048.00 ",Information Management Services,Large,Programme,
UK Statistics Authority,Office for National Statistics,13 February 2017,Services - Non IT Contractual Payments,SENIOR MANAGEMENT TEAM DESIGN,Ernst & Young Llp,15658," 39,456.00 ",Information Management Services,Large,Programme,
UK Statistics Authority,Office for National Statistics,13 February 2017,Services - Non IT Contractual Payments,SENIOR MANAGEMENT TEAM DESIGN,Ernst & Young Llp,15658," 6,691.00 ",Information Management Services,Large,Programme,
UK Statistics Authority,Office for National Statistics,14 February 2017,Consultants IT,SENIOR MANAGEMENT TEAM,Ernst & Young Llp,15696," 75,708.00 ",Information Management Services,Large,Programme,
UK Statistics Authority,Office for National Statistics,14 February 2017,Stationery                    ,CWT LODGECARD,Royal Bank of Scotland,15697," 15,022.48 ",Multiple Procurement Card Purchases,Large,Programme,
UK Statistics Authority,Office for National Statistics,14 February 2017,Miscellaneous Fees            ,GPC,Royal Bank of Scotland,15697," 54,390.92 ",Multiple Procurement Card Purchases,Large,Programme,
UK Statistics Authority,Office for National Statistics,14 February 2017,Contractors,Digital Services Technology and Methodology,E Synergy Solutions,15676," 62,637.00 ",Information Management Services,SME,Programme,
UK Statistics Authority,Office for National Statistics,15 February 2017,Capital Major Works >25k      ,Property Newport,Shs Integrated Services Ltd,16199," 81,124.77 ",Major Works Newport,Large,Programme,
UK Statistics Authority,Office for National Statistics,15 February 2017,Major Works Over 25k         ,Property Newport,Shs Integrated Services Ltd,16199," 14,316.13 ",Major Works Newport,Large,Programme,
UK Statistics Authority,Office for National Statistics,15 February 2017,Capitalised Specialist Contractors It,SENIOR MANAGEMENT TEAM,Ernst & Young Llp,16212," 51,210.00 ",Information Management Services,Large,Programme,
UK Statistics Authority,Office for National Statistics,15 February 2017,Statistical Services/Surveys  ,SOCIAL SURVEYS DIVISION,National Centre,16214," 189,145.47 ",Statistical Services,Large,Programme,
UK Statistics Authority,Office for National Statistics,15 February 2017,Statistical Services/Surveys  ,SOCIAL SURVEYS DIVISION,National Centre,16214," 37,829.09 ",Statistical Services,Large,Programme,
UK Statistics Authority,Office for National Statistics,15 February 2017,Statistical Services/Surveys  ,SOCIAL SURVEYS DIVISION,National Centre,16214," 11,811.80 ",Statistical Services,Large,Programme,
UK Statistics Authority,Office for National Statistics,15 February 2017,Contractors,Digital Services Technology and Methodology,E Synergy Solutions,16200," 59,190.00 ",Information Management Services,SME,Programme,
UK Statistics Authority,Office for National Statistics,15 February 2017,Travel & Subsistence,CWT TRAINLINE,Redfern Travel,16206," 34,367.13 ",Travel and Accommodation Booking Service,SME,Programme,
UK Statistics Authority,Office for National Statistics,16 February 2017,Software Pool 4yr,Finance Division,Oracle Corporation UK Ltd,16227," 53,785.08 ",Information Management Services,Large,Programme,
UK Statistics Authority,Office for National Statistics,16 February 2017,IT Purchases >2k,Digital Services Technology and Methodology,Oracle Corporation UK Ltd,16227," 519,784.30 ",Information Management Services,Large,Programme,
UK Statistics Authority,Office for National Statistics,16 February 2017,Software Pool 4yr,Digital Services Technology and Methodology,Oracle Corporation UK Ltd,16227," 289,842.50 ",Information Management Services,Large,Programme,
UK Statistics Authority,Office for National Statistics,16 February 2017,Contractors,Digital Services Technology and Methodology,Oracle Corporation UK Ltd,16227," 20,657.69 ",Information Management Services,Large,Programme,
UK Statistics Authority,Office for National Statistics,16 February 2017,IT Purchases <2k,Digital Services Technology and Methodology,Oracle Corporation UK Ltd,16227," 5,342.40 ",Information Management Services,Large,Programme,
UK Statistics Authority,Office for National Statistics,16 February 2017,Contractors,Digital Services Technology and Methodology,Oracle Corporation UK Ltd,16227," 63,766.37 ",Information Management Services,Large,Programme,
UK Statistics Authority,Office for National Statistics,16 February 2017,IT Purchases <2k,Digital Services Technology and Methodology,Oracle Corporation UK Ltd,16227," 60,245.32 ",Information Management Services,Large,Programme,
UK Statistics Authority,Office for National Statistics,16 February 2017,IT Purchases <2k,Digital Services Technology and Methodology,Oracle Corporation UK Ltd,16227,"-9,317.49 ",Information Management Services,Large,Programme,
UK Statistics Authority,Office for National Statistics,16 February 2017,Services - IT Contractual Payments,ADMIN DATA,Equiniti Limited,16239," 109,222.60 ",Information Management Services,Large,Programme,
UK Statistics Authority,Office for National Statistics,16 February 2017,Services - IT Contractual Payments,VML AND ACCESS TO DATA,Equiniti Limited,16239," 126,841.40 ",Information Management Services,Large,Programme,
UK Statistics Authority,Office for National Statistics,16 February 2017,Contractors,Digital Services Technology and Methodology,Landmark Information Group,16242," 97,165.40 ",Information Management Services,Large,Programme,
UK Statistics Authority,Office for National Statistics,16 February 2017,Statistical Services/Surveys  ,CRIME STATISTICS,Tns UK Ltd,16243," 322,292.00 ",Statistical Services,Large,Programme,
UK Statistics Authority,Office for National Statistics,16 February 2017,Statistical Services/Surveys  ,CRIME STATISTICS,Tns UK Ltd,16243," 23,200.00 ",Statistical Services,Large,Programme,
UK Statistics Authority,Office for National Statistics,16 February 2017,Statistical Services/Surveys  ,CRIME STATISTICS,Tns UK Ltd,16243," 69,098.40 ",Statistical Services,Large,Programme,
UK Statistics Authority,Office for National Statistics,16 February 2017,Contractors,Digital Services Technology and Methodology,Methods Digital Ltd,16249," 85,590.00 ",Information Management Services,Large,Programme,
UK Statistics Authority,Office for National Statistics,16 February 2017,Contractors,Digital Services Technology and Methodology,Valtech Ltd,16259," 93,903.60 ",Information Management Services,Large,Programme,
UK Statistics Authority,Office for National Statistics,16 February 2017,Electricity                   ,Property Titchfield,Edf Energy,30000307," 31,405.31 ",Titchfield Electricity Charges ,Large,Programme,
UK Statistics Authority,Office for National Statistics,16 February 2017,Electricity                   ,Property London,Edf Energy,30000308," 30,016.60 ",Drummond Gate Electricity Charges ,Large,Programme,
UK Statistics Authority,Office for National Statistics,16 February 2017,Electricity                   ,Property Newport,Edf Energy,30000309," 32,436.51 ",Newport Electricity Charges ,Large,Programme,
UK Statistics Authority,Office for National Statistics,16 February 2017,Contractors,Digital Services Technology and Methodology,Mango Solutions,16224," 67,395.12 ",Information Management Services,SME,Programme,
UK Statistics Authority,Office for National Statistics,16 February 2017,Contractors,Digital Services Technology and Methodology,Mango Solutions,16224," 29,069.04 ",Information Management Services,SME,Programme,
UK Statistics Authority,Office for National Statistics,16 February 2017,Contractors,Digital Services Technology and Methodology,E Synergy Solutions,16229," 26,508.00 ",Information Management Services,SME,Programme,
UK Statistics Authority,Office for National Statistics,16 February 2017,Capital Major Works >25k      ,Property Titchfield,Paramount Office Interiors Ltd,16252," 7,019.03 ",Major Works Titchfield,SME,Programme,
UK Statistics Authority,Office for National Statistics,16 February 2017,Major Works Over 25k         ,Property Titchfield,Paramount Office Interiors Ltd,16252," 39,635.19 ",Major Works Titchfield,SME,Programme,
UK Statistics Authority,Office for National Statistics,16 February 2017,Major Works Over 25k         ,Property Titchfield,Paramount Office Interiors Ltd,16252," 7,098.15 ",Major Works Titchfield,SME,Programme,
UK Statistics Authority,Office for National Statistics,16 February 2017,Specialist Contractors IT,DIGITAL PUBLISHING PMO,Redweb,16225," 31,680.00 ",Information Management Services,SME,Programme,
UK Statistics Authority,Office for National Statistics,17 February 2017,Software Pool 4yr,Finance Division,Oracle Corporation UK Ltd,16330," 115,135.73 ",Information Management Services,Large,Programme,
UK Statistics Authority,Office for National Statistics,17 February 2017,Contractors,Digital Services Technology and Methodology,Certus Solutions Consulting Services Ltd,16333," 59,640.00 ",Information Management Services,SME,Programme,
UK Statistics Authority,Office for National Statistics,17 February 2017,Internal Auditors Fees        ,SOCIAL SURVEYS DIVISION,Natcen Social Research,16334,"-84,320.00 ",Statistical Services,SME,Programme,
UK Statistics Authority,Office for National Statistics,17 February 2017,Services - Non IT Contractual Payments,SOCIAL SURVEYS DIVISION,Natcen Social Research,16334," 49,730.00 ",Statistical Services,SME,Programme,
UK Statistics Authority,Office for National Statistics,17 February 2017,Services - Non IT Contractual Payments,SOCIAL SURVEYS DIVISION,Natcen Social Research,16334," 28,125.00 ",Statistical Services,SME,Programme,
UK Statistics Authority,Office for National Statistics,17 February 2017,Services - Non IT Contractual Payments,SOCIAL SURVEYS DIVISION,Natcen Social Research,16334," 15,571.00 ",Statistical Services,SME,Programme,
UK Statistics Authority,Office for National Statistics,20 February 2017,Services - Non IT Contractual Payments,STRATEGY & ENTERPRISE ARCHITECTURE,Medley Business Solutions Ltd,16702," 33,461.39 ",Information Management Services,Large,Programme,
UK Statistics Authority,Office for National Statistics,20 February 2017,Contractors,Digital Services Technology and Methodology,Bt Dfts,16706," 63,208.30 ",Information Management Services,Large,Programme,
UK Statistics Authority,Office for National Statistics,20 February 2017,Contractors,Digital Services Technology and Methodology,Bt Dfts,16706," 334,091.06 ",Information Management Services,Large,Programme,
UK Statistics Authority,Office for National Statistics,20 February 2017,Telecomms                     ,Digital Services Technology and Methodology,Bt Dfts,16706," 2,309.18 ",Information Management Services,Large,Programme,
UK Statistics Authority,Office for National Statistics,20 February 2017,Telecomms                     ,INTERVIEWER MANAGEMENT TU,Level 3 Communications UK Limited,16708," 43,044.41 ",Managed Network Service Charges,Large,Programme,
UK Statistics Authority,Office for National Statistics,21 February 2017,Contractors,Digital Services Technology and Methodology,Valtech Ltd,16773," 10,080.00 ",Information Management Services,Large,Programme,
UK Statistics Authority,Office for National Statistics,21 February 2017,Contractors,Digital Services Technology and Methodology,Valtech Ltd,16773," 341,805.00 ",Information Management Services,Large,Programme,
UK Statistics Authority,Office for National Statistics,21 February 2017,Contractors,Digital Services Technology and Methodology,E Synergy Solutions,16767," 62,862.00 ",Information Management Services,SME,Programme,
UK Statistics Authority,Office for National Statistics,22 February 2017,Statistical Services/Surveys  ,CRIME STATISTICS,Tns UK Ltd,17075," 366,644.00 ",Statistical Services,Large,Programme,
UK Statistics Authority,Office for National Statistics,22 February 2017,Statistical Services/Surveys  ,CRIME STATISTICS,Tns UK Ltd,17075," 73,328.80 ",Statistical Services,Large,Programme,
UK Statistics Authority,Office for National Statistics,22 February 2017,Travel & Subsistence,CWT TRAINLINE,Redfern Travel,17073," 43,980.13 ",Travel and Accommodation Booking Service,SME,Programme,
UK Statistics Authority,Office for National Statistics,22 February 2017,Consultants IT,Census,Brook Street (UK) Limited,17083," 94,972.50 ",Census RTP Services,SME,Programme,
UK Statistics Authority,Office for National Statistics,23 February 2017,Contractors,Digital Services Technology and Methodology,Amazon Web Services Inc,30000315," 27,197.31 ",Information Management Services,Large,Programme,
UK Statistics Authority,Office for National Statistics,23 February 2017,Contractors,Digital Services Technology and Methodology,Softcat,17103," 44,607.10 ",Information Management Services,SME,Programme,
UK Statistics Authority,Office for National Statistics,23 February 2017,Contractors,Digital Services Technology and Methodology,Softcat,17103," 8,921.42 ",Information Management Services,SME,Programme,
UK Statistics Authority,Office for National Statistics,24 February 2017,Miscellaneous Minor Works     ,BUSINESS CHANGE & SUPPORT,The Senator Group,17124," 7,603.20 ",Smart Working Furniture,Large,Programme,
UK Statistics Authority,Office for National Statistics,24 February 2017,Miscellaneous Fees            ,CONTRACT AND SERVICE DELIVERY,The Senator Group,17124," 49,797.80 ",Smart Working Furniture,Large,Programme,
UK Statistics Authority,Office for National Statistics,24 February 2017,Specialist Contractors IT,Digital Services Technology and Methodology,Methods Digital Ltd,17125," 43,650.00 ",Information Management Services,Large,Programme,
UK Statistics Authority,Office for National Statistics,24 February 2017,Consultants IT,SENIOR MANAGEMENT TEAM,Ernst & Young Llp,17127," 25,389.00 ",Information Management Services,Large,Programme,
UK Statistics Authority,Office for National Statistics,24 February 2017,Consultants IT,SENIOR MANAGEMENT TEAM,Ernst & Young Llp,17127," 27,351.00 ",Information Management Services,Large,Programme,
UK Statistics Authority,Office for National Statistics,24 February 2017,Services - IT Contractual Payments,SENIOR MANAGEMENT TEAM,Ernst & Young Llp,17127," 62,436.00 ",Information Management Services,Large,Programme,
UK Statistics Authority,Office for National Statistics,24 February 2017,Services - Non IT Contractual Payments,SENIOR MANAGEMENT TEAM,Ernst & Young Llp,17127," 16,528.20 ",Information Management Services,Large,Programme,
UK Statistics Authority,Office for National Statistics,24 February 2017,Services - Non IT Contractual Payments,SENIOR MANAGEMENT TEAM,Ernst & Young Llp,17127," 11,736.00 ",Information Management Services,Large,Programme,
UK Statistics Authority,Office for National Statistics,24 February 2017,Statistical Services/Surveys  ,SOCIAL SURVEYS DIVISION,National Centre,17128," 209,970.47 ",Statistical Services,Large,Programme,
UK Statistics Authority,Office for National Statistics,24 February 2017,Statistical Services/Surveys  ,SOCIAL SURVEYS DIVISION,National Centre,17128," 41,994.09 ",Statistical Services,Large,Programme,
UK Statistics Authority,Office for National Statistics,24 February 2017,Contractors,Digital Services Technology and Methodology,Servicenow,17133," 35,193.60 ",Information Management Services,Large,Programme,
UK Statistics Authority,Office for National Statistics,24 February 2017,Contractors,Digital Services Technology and Methodology,Valtech Ltd,17134," 98,880.00 ",Information Management Services,Large,Programme,
UK Statistics Authority,Office for National Statistics,24 February 2017,Contractors,Digital Services Technology and Methodology,Valtech Ltd,17134," 25,080.00 ",Information Management Services,Large,Programme,
UK Statistics Authority,Office for National Statistics,24 February 2017,IT Purchases >2k,Finance Division,Phoenix Software Ltd,17121," 30,000.00 ",Information Management Services,SME,Programme,
UK Statistics Authority,Office for National Statistics,24 February 2017,Services - IT Contractual Payments,Finance Division,Phoenix Software Ltd,17121," 25,200.00 ",Information Management Services,SME,Programme,
UK Statistics Authority,Office for National Statistics,24 February 2017,ICT Outsourcing & Maintenance/Support,Digital Services Technology and Methodology,Concept Information Technology Ltd T/A Concept Resourcing,17115," 26,208.00 ",Information Management Services,SME,Programme,
UK Statistics Authority,Office for National Statistics,24 February 2017,Agency Staff,SURVEY METHODOLOGY & QUAL DD,Concept Information Technology Ltd T/A Concept Resourcing,17115, 444.00 ,Information Management Services,SME,Programme,
UK Statistics Authority,Office for National Statistics,24 February 2017,IT Purchases >2k,Digital Services Technology and Methodology,Officevision Ltd,17135," 28,271.04 ",Information Management Services,SME,Programme,
UK Statistics Authority,Office for National Statistics,27 February 2017,Contractors,Digital Services Technology and Methodology,E Synergy Solutions,17853," 25,800.00 ",Information Management Services,SME,Programme,
UK Statistics Authority,Office for National Statistics,28 February 2017,Contractors,Digital Services Technology and Methodology,E Synergy Solutions,17919," 64,902.00 ",Information Management Services,SME,Programme,
UK Statistics Authority,Office for National Statistics,28 February 2017,Contractors,Digital Services Technology and Methodology,E Synergy Solutions,17919," 12,408.00 ",Information Management Services,SME,Programme,
,,,,,,,"-7,764.58 ",,,
